Cogmind - Beta 11 X10 @@@ ROGUE MODE // 2022.02.28 @ 00:18:49 Player: Sandwich Result: Destroyed by P-80 Master with Gamma Rifle Performance ------------- Evolutions (9) 4500 Regions Visited (13) 2600 Robots Destroyed (38) 190 Value Destroyed (1588) 1588 Prototype IDs (3) 60 Alien Tech Used (0) 0 Bonus (565) 565 TOTAL SCORE: 9503 Bonus ------- Follower Combat Kills 65 Entered DSFs 500 Cogmind --------- Core Integrity 0/1600 Matter 135/300 Energy 99/100 System Corruption 24% Temperature Cool (9) Movement Core (50) Location -1/Access Parts ------- > --- POWER (3) -------- (None) > --- PROPULSION (10) -- (None) > --- UTILITY (8) ------ Advanced Terrain Scan Processor System Shield > --- WEAPON (4) ------- (None) > --- INVENTORY (5) ---- Improved Fusion Compressor Particle Reactor Centrium Light Armor Plating Peak State ------------ > --- POWER ------------ Light Particle Reactor > --- PROPULSION ------- Improved Surge Thruster Cooled Field Propulsion Drive Q-thruster Impulse Thruster Array Impulse Thruster Array > --- UTILITY ---------- Machine Analyzer Machine Analyzer Centrium Light Armor Plating Centrium Light Armor Plating Centrium Light Armor Plating System Shield > --- WEAPON ----------- Hypervelocity Railgun Hypervelocity Railgun > --- INVENTORY -------- Particle Reactor Light Particle Reactor Improved Plasma Cutter [Rating: 115] Favorites ----------- Power Ion Engine Engine Ion Engine Power Core Light Fission Core Reactor Light Particle Reactor Propulsion Titanium Leg Treads Light Treads Leg Titanium Leg Wheel Compact Wheel Hover Unit Linear Gravjet Flight Unit Cooled Field Propulsion Drive Utility Improved Light Armor Plating Device Actuator Array Storage High-capacity Storage Unit Processor Machine Analyzer Hackware System Shield Protection Improved Light Armor Plating Weapon Flail Energy Gun EM Pulse Gun Energy Cannon Enhanced Nova Cannon Ballistic Gun Hypervelocity Railgun Launcher Fusion Bomb Launcher Special Weapon Improved Plasma Cutter Impact Weapon Flail Piercing Weapon Lance Build | -11 -10 -9 -8 -7 -6 -6 -6 -5 -4 -4 -3 -2 -1 ------- Run | Scr Mat Mat Mat Fac Fac Low Low Fac Fac DSF Res Res Acc Slots Evolved 18 | . . 2 2 2 2 . . 2 2 . 2 2 2 Power 2 | . . . . . . . . 1 1 . . . . Propulsion 8 | . . . . . 2 . . 1 1 . 2 2 . Utility 6 | . . . 2 2 . . . . . . . . 2 Weapon 2 | . . 2 . . . . . . . . . . . Parts Attached 102 | 6 2 4 4 5 16 6 . 6 4 6 21 7 15 Power 8 | 1 . . . . 2 . . 1 . . 1 2 1 Engine 2 | 1 . . . . 1 . . . . . . . . Core 2 | . . . . . . . . 1 . . . . 1 Reactor 4 | . . . . . 1 . . . . . 1 2 . Propulsion 34 | 2 . . . 2 4 1 . 2 3 2 7 2 9 Treads 5 | 1 . . . . . . . . . 2 2 . . Leg 16 | . . . . 2 4 1 . 1 . . . . 8 Wheel 2 | 1 . . . . . . . . 1 . . . . Hover 2 | . . . . . . . . 1 1 . . . . Flight 9 | . . . . . . . . . 1 . 5 2 1 Utility 34 | 1 2 1 3 3 9 2 . 2 1 4 4 . 2 Device 5 | . 1 . 1 . 2 . . . 1 . . . . Storage 2 | 1 1 . . . . . . . . . . . . Processor 6 | . . . . . . . . 1 . 4 . . 1 Hackware 5 | . . . 2 1 . . . 1 . . . . 1 Protection 16 | . . 1 . 2 7 2 . . . . 4 . . Artifact . | . . . . . . . . . . . . . . Weapon 26 | 2 . 3 1 . 1 3 . 1 . . 9 3 3 Energy Gun 2 | 2 . . . . . . . . . . . . . Energy Cannon 5 | . . . . . . . . . . . . 2 3 Ballistic Gun 6 | . . . . . . . . . . . 6 . . Ballistic Cannon . | . . . . . . . . . . . . . . Launcher 1 | . . . . . . . . . . . 1 . . Special Weapon 4 | . . . . . . 2 . . . . 1 1 . Impact Weapon 7 | . . 3 1 . 1 1 . 1 . . . . . Slashing Weapon . | . . . . . . . . . . . . . . Piercing Weapon 1 | . . . . . . . . . . . 1 . . Special Melee Weapon . | . . . . . . . . . . . . . . Unidentified Prototypes 3 | . . . . . 1 . . . 1 . 1 . . Parts Lost 42 | . . . . . 6 14 . . . 1 2 11 8 Power 3 | . . . . . . 1 . . . 1 . 1 . Propulsion 18 | . . . . . 2 4 . . . . 1 6 5 Utility 13 | . . . . . 3 6 . . . . . 2 2 Weapon 8 | . . . . . 1 3 . . . . 1 2 1 Highest Loss Streak 10 | . . . . . 6 5 . . . 1 1 10 4 To Critical Strikes . | . . . . . . . . . . . . . . Average Slot Usage (%) 74 | . 87 98 100 100 93 75 13 30 30 43 54 40 20 Engine 4 | . 14 11 9 7 3 3 . . . . . . . Treads 2 | . 14 11 9 4 . . . . . . 2 . . Leg 12 | . . . . 5 24 21 . . . . . . 11 Wheel 2 | . 14 11 9 4 . . . . . 3 . . . Flight 1 | . . . . . . . . . 4 5 11 14 . Device 4 | . 2 4 6 7 7 5 . . . . . . . Storage 5 | . 14 11 9 7 6 5 . . . . . . . Processor 3 | . . . . . . . . 2 5 14 20 7 3 Hackware 5 | . . . 18 23 10 . . 3 5 5 4 4 4 Protection 9 | . . 6 2 7 12 18 . . . . 2 6 . Energy Gun 1 | . 28 12 1 . . . . . . . . . . Impact Weapon 16 | . . 29 34 30 23 17 . 3 . . . . . Naked Turns 62 | . . . . . . 62 . . . . . . . Heaviest Build 84 | 13 49 56 59 67 84 73 2 12 12 7 40 34 13 Greatest Support 180 | 20 16 16 16 34 68 68 3 17 9 27 47 43 180 Greatest Overweight (x) 4 | . 3 3 3 4 2 1 . 1 1 . . . . Average Overweight (x) . | . . 3 3 3 1 . . . . . . . . Largest Inventory Capacity 20 | 8 20 20 20 20 20 20 5 5 5 5 5 5 5 Average Capacity 15 | 6 12 20 20 20 20 19 5 5 5 5 5 5 5 Most Carried 20 | 2 7 14 20 20 19 17 5 5 5 5 5 3 4 Average Carried 12 | 1 4 10 16 18 16 15 5 3 4 4 4 2 3 Final Capacity 20 | 8 20 20 20 20 20 5 5 5 5 5 5 5 5 Final Carried 20 | 2 7 14 20 20 17 5 5 3 5 5 3 3 3 Class Distribution -------------------- 72% | Mutant 21% | Hacker-Mutant 4% | Sprinter Dominant Class ---------------- Mutant | -10/Materials Mutant | -9/Materials Hacker-Mutant | -8/Materials Hacker-Mutant | -7/Factory Mutant | -6/Factory Mutant | -6/Lower Caves Mutant | -6/Lower Caves Mutant | -5/Factory Mutant | -4/Factory Mutant | -4/DSF Mutant | -3/Research Sprinter | -2/Research Mutant | -1/Access Resources | -11 -10 -9 -8 -7 -6 -6 -6 -5 -4 -4 -3 -2 -1 ----------- Run | Scr Mat Mat Mat Fac Fac Low Low Fac Fac DSF Res Res Acc Matter Collected 1640 | 157 64 99 40 . 218 626 . . . . 436 . . Remotely . | . . . . . . . . . . . . . . Salvage Created 1493 | . 14 62 352 . 548 374 . . . . 103 40 . Parts 55 | . 1 . 6 . 28 10 . . . . 7 3 . Haulers Intercepted 1 | . . . 1 . . . . . . . . . . Recyclers Shooed . | . . . . . . . . . . . . . . Parts Field Recycled . | . . . . . . . . . . . . . . Retrieved Matter . | . . . . . . . . . . . . . . Parts Self-Destructed 2 | . . . . . . 2 . . . . . . . Prevented 10 | . . . . . . 10 . . . . . . . Kills | -11 -10 -9 -8 -7 -6 -6 -6 -5 -4 -4 -3 -2 -1 ------- Run | Scr Mat Mat Mat Fac Fac Low Low Fac Fac DSF Res Res Acc Combat Hostiles Destroyed 35 | . . 1 10 . 12 8 . . . . 3 1 . Melee 16 | . . . 7 . 6 3 . . . . . . . Guns 4 | . . . . . . . . . . . 3 1 . Classes Destroyed 11 | . 1 2 4 . 2 1 . . . . 1 . . Worker 1 | . . 1 . . . . . . . . . . . Hauler 1 | . . . 1 . . . . . . . . . . Watcher 1 | . 1 . . . . . . . . . . . . Swarmer 8 | . . . 4 . . 3 . . . . . 1 . Cutter 3 | . . . . . . . . . . . 3 . . Grunt 12 | . . . 4 . 5 3 . . . . . . . Duelist 1 | . . . 1 . . . . . . . . . . Sentry 4 | . . 1 1 . 1 1 . . . . . . . Specialist 2 | . . . . . 2 . . . . . . . . Hunter 1 | . . . . . . 1 . . . . . . . Programmer 4 | . . . . . 4 . . . . . . . . Best Kill Streak 4 | . 1 1 4 . 3 3 . . . . 3 1 . Combat Bots Only 4 | . . 1 4 . 3 3 . . . . 3 1 . Max Kills in Single Turn 1 | . 1 1 1 . 1 1 . . . . 1 1 . Gunslinging . | . . . . . . . . . . . . . . Exploded . | . . . . . . . . . . . . . . Melee 1 | . . . 1 . 1 1 . . . . . . . Uniques/NPCs Destroyed . | . . . . . . . . . . . . . . Combat | -11 -10 -9 -8 -7 -6 -6 -6 -5 -4 -4 -3 -2 -1 -------- Run | Scr Mat Mat Mat Fac Fac Low Low Fac Fac DSF Res Res Acc Damage Taken 10172 | . 26 31 248 . 2012 1685 . . . 348 1063 1665 3094 Core 2749 | . 8 . 89 . 243 239 . . . 151 92 324 1603 Absorbed by Shields 35 | . . . . . 35 . . . . . . . . Core Remaining (%) 87 | 100 96 100 83 100 . . 43 100 . 86 92 77 . Volleys Fired 28 | . 1 1 . . . . . . . . 10 11 5 Largest 2 | . 2 1 . . . . . . . . 2 1 1 Hottest 120 | . 80 40 . . . . . . . . 80 120 120 Shots Fired 34 | . 2 1 . . . . . . . . 15 11 5 Gun 22 | . 2 1 . . . . . . . . 13 6 . Cannon 8 | . . . . . . . . . . . . 3 5 Launcher . | . . . . . . . . . . . . . . Special 4 | . . . . . . . . . . . 2 2 . Kinetic 19 | . . . . . . . . . . . 13 6 . Thermal 13 | . 1 . . . . . . . . . 2 5 5 Explosive . | . . . . . . . . . . . . . . Electromagnetic 2 | . 1 1 . . . . . . . . . . . Robot Hit Streak 7 | . 1 2 . . . . . . . . 5 7 . Robot Miss Streak 3 | . . . . . . . . . . . 3 2 . Penetration Max . | . . . . . . . . . . . . . . Secondary Targets . | . . . . . . . . . . . . . . Shots Hit Robots 101 | . 1 5 26 . 31 23 . . . . 10 5 . Core Hits 24 | . 1 1 4 . 6 3 . . . . 5 4 . Critical Kills 7 | . . . 1 . 1 1 . . . . 3 1 . Critical Parts Destroyed 16 | . . 2 4 . 3 4 . . . . 1 2 . Critical Strikes 26 | . 1 2 5 . 5 5 . . . . 5 3 . Destroy 8 | . . . . . . . . . . . 5 3 . Corrupt 1 | . 1 . . . . . . . . . . . . Smash 17 | . . 2 5 . 5 5 . . . . . . . Melee Attacks 126 | . . 4 37 . 49 36 . . . . . . . Impact 126 | . . 4 37 . 49 36 . . . . . . . Slashing . | . . . . . . . . . . . . . . Piercing . | . . . . . . . . . . . . . . Sneak Attacks 2 | . . 1 1 . . . . . . . . . . Combat Hostiles . | . . . . . . . . . . . . . . Follow-up Attacks 32 | . . 2 10 . 11 9 . . . . . . . Damage Inflicted 3470 | . 22 157 1096 . 1165 715 . . . . 102 202 11 Guns 137 | . 22 12 . . . . . . . . 67 36 . Cannons . | . . . . . . . . . . . . . . Explosions 148 | . . . . . . . . . . . . 148 . Melee 3121 | . . 145 1096 . 1165 715 . . . . . . . Ramming 11 | . . . . . . . . . . . . . 11 Kinetic 103 | . . . . . . . . . . . 67 36 . Thermal 53 | . . . . . . . . . . . 35 18 . Explosive 148 | . . . . . . . . . . . . 148 . Electromagnetic 34 | . 22 12 . . . . . . . . . . . Impact 3121 | . . 145 1096 . 1165 715 . . . . . . . Slashing . | . . . . . . . . . . . . . . Piercing . | . . . . . . . . . . . . . . Highest Corruption 23 | . 2 . 2 . 4 4 4 . . . 5 1 23 Average Corruption 4 | . 2 . 2 . 3 4 4 . . . 4 1 12 Corruption Purged . | . . . . . . . . . . . . . . Corruption Blocked . | . . . . . . . . . . . . . . Effects 65 | . 1 . 2 . 14 31 . . . . 4 . 13 Message Errors 15 | . 1 . 1 . 1 9 . . . . 1 . 2 Matter Fused 11 | . . . . . 4 5 . . . . . . 2 Heat Flow Errors 8 | . . . . . 1 5 . . . . 1 . 1 Energy Discharges 8 | . . . . . 2 5 . . . . . . 1 Parts Rejected 2 | . . . . . 1 . . . . . 1 . . Data Loss (minor) 10 | . . . . . 4 4 . . . . . . 2 Data Loss (major) 5 | . . . 1 . . 2 . . . . 1 . 1 Alerts 2 | . . . . . 1 1 . . . . . . . Misdirections 4 | . . . . . . . . . . . . . 4 Overload Shots . | . . . . . . . . . . . . . . Overflow Damage 836 | . . 78 385 . 179 186 . . . . . . 8 Projectiles . | . . . . . . . . . . . . . . Explosions 8 | . . . . . . . . . . . . . 8 Melee 828 | . . 78 385 . 179 186 . . . . . . . Knockbacks 18 | . . 1 4 . 9 4 . . . . . . . Impact 18 | . . 1 4 . 9 4 . . . . . . . Kinetic . | . . . . . . . . . . . . . . Secondary . | . . . . . . . . . . . . . . Self-Inflicted Damage 197 | . . . . . . . . . . . . 99 98 Shots 2 | . . . . . . . . . . . . 1 1 Rammed . | . . . . . . . . . . . . . . Targets Rammed 8 | . . . . . . . . . . . . . 8 Kicked 8 | . . . . . . . . . . . . . 8 Crushed . | . . . . . . . . . . . . . . Highest Temperature 176 | . 18 . 4 . 163 168 . . . . 117 100 176 Average Temperature 58 | . 12 . 4 . 82 79 . . . . 44 45 41 Received Heat Transfer 858 | . . . 54 . 290 343 . . . . 72 63 36 Siege Activations . | . . . . . . . . . . . . . . Robots Corrupted 1 | . . 1 . . . . . . . . . . . Combat Hostiles 1 | . . 1 . . . . . . . . . . . Parts Fried 28 | . . 2 7 . 9 10 . . . . . . . Impact Corruptions 44 | . . 3 17 . 14 10 . . . . . . . Robots Melted . | . . . . . . . . . . . . . . Combat Hostiles . | . . . . . . . . . . . . . . Parts Melted . | . . . . . . . . . . . . . . Heat Transferred 111 | . . . . . . . . . . . 74 37 . Parts Sabotaged . | . . . . . . . . . . . . . . Parts Stolen . | . . . . . . . . . . . . . . Parts Stripped . | . . . . . . . . . . . . . . Power Chain Reactions . | . . . . . . . . . . . . . . Missiles Intercepted . | . . . . . . . . . . . . . . Alert | -11 -10 -9 -8 -7 -6 -6 -6 -5 -4 -4 -3 -2 -1 ------- Run | Scr Mat Mat Mat Fac Fac Low Low Fac Fac DSF Res Res Acc Peak Influence 663 | . 22 81 203 51 290 . . 16 7 4 200 484 663 Initial 272 | . . 9 33 51 24 . . 16 7 4 . 112 272 Average 105 | . 5 55 86 51 84 . . 16 7 2 42 286 397 Maximum Alert Level 2 | . . . 1 . 1 . . . . . 1 2 2 Low Security (%) 83 | 100 100 100 96 100 91 . . 100 100 100 99 26 . Level 1 10 | . . . 3 . 8 . . . . . . 45 57 Level 2 5 | . . . . . . . . . . . . 28 42 Level 3 . | . . . . . . . . . . . . . . Level 4 . | . . . . . . . . . . . . . . Level 5 . | . . . . . . . . . . . . . . High Security . | . . . . . . . . . . . . . . Max Security . | . . . . . . . . . . . . . . Squads Dispatched 14 | . . . . 1 6 . . . . 1 3 2 1 Investigation . | . . . . . . . . . . . . . . Extermination 2 | . . . . . 2 . . . . . . . . Reinforcement 12 | . . . . 1 4 . . . . 1 3 2 1 Assault . | . . . . . . . . . . . . . . Garrison . | . . . . . . . . . . . . . . Intercept . | . . . . . . . . . . . . . . Construction Impeded . | . . . . . . . . . . . . . . Haulers Reinforced . | . . . . . . . . . . . . . . Active Scanning Responses . | . . . . . . . . . . . . . . Cargo Convoy Interrupts . | . . . . . . . . . . . . . . Stealth | -11 -10 -9 -8 -7 -6 -6 -6 -5 -4 -4 -3 -2 -1 --------- Run | Scr Mat Mat Mat Fac Fac Low Low Fac Fac DSF Res Res Acc Distress Signals 9 | . 1 . . . 2 . . . . . 5 . 1 Communications Jammed . | . . . . . . . . . . . . . . Distress Signals . | . . . . . . . . . . . . . . Times Spotted 135 | . 6 2 14 2 20 14 . . . 5 18 28 26 Peak Tracking Total 13 | . 6 1 5 2 8 4 . . . 5 12 11 13 Tactical Retreats 23 | . . . . . 3 3 . . . . 5 5 7 Traps | -11 -10 -9 -8 -7 -6 -6 -6 -5 -4 -4 -3 -2 -1 ------- Run | Scr Mat Mat Mat Fac Fac Low Low Fac Fac DSF Res Res Acc Traps Triggered 8 | . 2 . 1 . 1 . . . . 2 2 . . Indirectly . | . . . . . . . . . . . . . . Trap Hack Attempts . | . . . . . . . . . . . . . . Triggered . | . . . . . . . . . . . . . . Disarmed . | . . . . . . . . . . . . . . Reprogrammed . | . . . . . . . . . . . . . . Reused . | . . . . . . . . . . . . . . Traps Extracted . | . . . . . . . . . . . . . . Installed . | . . . . . . . . . . . . . . Triggered 1 | . . . . . 1 . . . . . . . . Machines | -11 -10 -9 -8 -7 -6 -6 -6 -5 -4 -4 -3 -2 -1 ---------- Run | Scr Mat Mat Mat Fac Fac Low Low Fac Fac DSF Res Res Acc Machines Disabled 2 | . . . . . . . . . . . . 1 1 Max in Single Turn 1 | . . . . . . . . . . . . 1 1 Energy Cycler 1 | . . . . . . . . . . . . . 1 Machines Sabotaged . | . . . . . . . . . . . . . . Garrisons Compromised . | . . . . . . . . . . . . . . Overloaded Fab Kills . | . . . . . . . . . . . . . . Hacking | -11 -10 -9 -8 -7 -6 -6 -6 -5 -4 -4 -3 -2 -1 --------- Run | Scr Mat Mat Mat Fac Fac Low Low Fac Fac DSF Res Res Acc Machines Accessed 13 | . . 1 3 1 2 1 . . 2 . 2 1 . Terminals 9 | . . 1 2 . 2 . . . 2 . 1 1 . Fabricators 1 | . . . . . . . . . . . 1 . . Repair Stations . | . . . . . . . . . . . . . . Recycling Units . | . . . . . . . . . . . . . . Scanalyzers 2 | . . . 1 1 . . . . . . . . . Garrison Access . | . . . . . . . . . . . . . . Total Hacks 37 | . . 2 16 7 4 1 . . 3 . 3 1 . Successful 18 | . . 1 4 7 2 1 . . 1 . 1 1 . Failed 19 | . . 1 12 . 2 . . . 2 . 2 . . Catastrophic 7 | . . . 5 . 1 . . . . . 1 . . Database Lockouts . | . . . . . . . . . . . . . . Manual 14 | . . 2 10 . . . . . . . 2 . . Terminals 22 | . . 2 10 . 4 . . . 3 . 2 1 . Fabricators 1 | . . . . . . . . . . . 1 . . Repair Stations . | . . . . . . . . . . . . . . Recycling Units . | . . . . . . . . . . . . . . Scanalyzers 13 | . . . 6 7 . . . . . . . . . Garrison Access . | . . . . . . . . . . . . . . Terminal Hacks 6 | . . 1 . . 2 1 . . 1 . . 1 . Part Schematic 1 | . . 1 . . . . . . . . . . . Open Door 1 | . . . . . . 1 . . . . . . . Open DSF 3 | . . . . . 1 . . . 1 . . 1 . Unreport Threat 1 | . . . . . 1 . . . . . . . . Fabricator Hacks 1 | . . . . . . . . . . . 1 . . Build 1 | . . . . . . . . . . . 1 . . Repair Station Hacks . | . . . . . . . . . . . . . . Recycling Unit Hacks . | . . . . . . . . . . . . . . Scanalyzer 11 | . . . 4 7 . . . . . . . . . Insert Component 5 | . . . 2 3 . . . . . . . . . Analyze 6 | . . . 2 4 . . . . . . . . . Garrison Access Hacks . | . . . . . . . . . . . . . . Unauthorized Hacks . | . . . . . . . . . . . . . . Terminals . | . . . . . . . . . . . . . . Fabricators . | . . . . . . . . . . . . . . Repair Stations . | . . . . . . . . . . . . . . Recycling Units . | . . . . . . . . . . . . . . Scanalyzers . | . . . . . . . . . . . . . . Garrison Access . | . . . . . . . . . . . . . . Data Cores Recovered . | . . . . . . . . . . . . . . Used . | . . . . . . . . . . . . . . Hacking Detections 6 | . . 1 2 . 1 . . . 1 . 1 . . Full Trace Events . | . . . . . . . . . . . . . . Feedback Events . | . . . . . . . . . . . . . . Feedback Blocked . | . . . . . . . . . . . . . . Robot Schematics Acquired . | . . . . . . . . . . . . . . Robots Built 4 | . . . . . . . . . . . 4 . . Authchips . | . . . . . . . . . . . . . . Time 102 | . . . . . . . . . . . 102 . . Total Robot Build Rating 32 | . . . . . . . . . . . 32 . . Part Schematics Acquired 6 | . . 1 2 3 . . . . . . . . . Parts Built . | . . . . . . . . . . . . . . Authchips . | . . . . . . . . . . . . . . Time . | . . . . . . . . . . . . . . Total Part Build Rating . | . . . . . . . . . . . . . . Parts Repaired . | . . . . . . . . . . . . . . Time . | . . . . . . . . . . . . . . Parts Recycled . | . . . . . . . . . . . . . . Recycled Matter . | . . . . . . . . . . . . . . Retrieved Matter . | . . . . . . . . . . . . . . Retrieved Components . | . . . . . . . . . . . . . . Parts Scanalyzed 5 | . . . 2 3 . . . . . . . . . Part Schematics Acquired 5 | . . . 2 3 . . . . . . . . . Parts Damaged . | . . . . . . . . . . . . . . Bothacking | -11 -10 -9 -8 -7 -6 -6 -6 -5 -4 -4 -3 -2 -1 ------------ Run | Scr Mat Mat Mat Fac Fac Low Low Fac Fac DSF Res Res Acc Used RIF Installer . | . . . . . . . . . . . . . . Robots Hacked . | . . . . . . . . . . . . . . Non-combat . | . . . . . . . . . . . . . . Combat . | . . . . . . . . . . . . . . Robot Hacks Applied . | . . . . . . . . . . . . . . Relay Couplers Released . | . . . . . . . . . . . . . . Fabnet Peak Effective % . | . . . . . . . . . . . . . . Robots Rewired . | . . . . . . . . . . . . . . Allies Hacked . | . . . . . . . . . . . . . . Hacks Repelled . | . . . . . . . . . . . . . . Allies | -11 -10 -9 -8 -7 -6 -6 -6 -5 -4 -4 -3 -2 -1 -------- Run | Scr Mat Mat Mat Fac Fac Low Low Fac Fac DSF Res Res Acc Total Allies 4 | . . . . . . . . . . . 4 . . Largest Group 4 | . . . . . . . . . . . 4 . . Highest-Rated Group 120 | . . . . . . . . . . . 120 . . Highest-Rated Ally 30 | . . . . . . . . . . . 30 . . Total Orders . | . . . . . . . . . . . . . . Ally Attacks 12 | . . . . . . . . . . . 12 . . Total Damage 159 | . . . . . . . . . . . 159 . . Kills 1 | . . . . . . . . . . . 1 . . Allies Corrupted . | . . . . . . . . . . . . . . Allies Melted . | . . . . . . . . . . . . . . Intel | -11 -10 -9 -8 -7 -6 -6 -6 -5 -4 -4 -3 -2 -1 ------- Run | Scr Mat Mat Mat Fac Fac Low Low Fac Fac DSF Res Res Acc Robot Analysis Total . | . . . . . . . . . . . . . . Derelict Logs Recovered 2 | . . . . . . 2 . . . . . . . Drone Launches . | . . . . . . . . . . . . . . Drone Recoveries . | . . . . . . . . . . . . . . Exploration | -11 -10 -9 -8 -7 -6 -6 -6 -5 -4 -4 -3 -2 -1 ------------- Run | Scr Mat Mat Mat Fac Fac Low Low Fac Fac DSF Res Res Acc Turns Passed 5549 | 57 110 357 672 126 964 1812 11 115 72 87 621 160 385 Spaces Moved 4451 | 45 90 213 378 64 398 959 17 133 136 87 915 350 666 Core 871 | 3 . . . . . 183 17 76 . . 72 19 501 Treads 2 | 1 . . . . . . . . . 1 . . . Legs 1229 | . . . . 17 398 776 . 12 . . . . 26 Wheels 769 | 41 90 213 378 47 . . . . . . . . . Hover 54 | . . . . . . . . 45 9 . . . . Flight 1526 | . . . . . . . . . 127 86 843 331 139 Fastest Speed 27 | 50 100 145 145 160 130 50 50 50 40 40 31 27 40 Average Speed 103 | 98 111 145 145 170 200 170 50 80 46 45 44 32 50 Slowest Speed 270 | 160 145 145 145 200 270 200 50 130 120 170 119 50 120 Overloaded Moves . | . . . . . . . . . . . . . . Propulsion Burnouts . | . . . . . . . . . . . . . . Robots Hopped 23 | . . . . . . . . . . 1 14 7 1 Cave-ins Triggered . | . . . . . . . . . . . . . . Exploration Rate (%) 24 | 3 24 20 34 2 16 84 6 3 4 82 27 18 26 Regions Visited 13 Branch Regions 2 Pre-discovered Areas . | . . . . . . . . . . . . . . Known Exits Taken 1 | . . . . . . . . . 1 . . . . Unknown Exits Taken 11 | 1 1 1 1 1 1 1 1 1 . . 1 1 . Scrap Searched . | . . . . . . . . . . . . . . Spaces Dug 6 | . . . . . . . . . . . . 2 4 Terrain Destroyed 54 | . . . . . . . . . . . . 32 22 Melee . | . . . . . . . . . . . . . . Projectile 6 | . . . . . . . . . . . . 2 4 AOE 48 | . . . . . . . . . . . . 30 18 Terrain Rammed . | . . . . . . . . . . . . . . Walls Destroyed . | . . . . . . . . . . . . . . Machines Disabled . | . . . . . . . . . . . . . . Actions | -11 -10 -9 -8 -7 -6 -6 -6 -5 -4 -4 -3 -2 -1 --------- Run | Scr Mat Mat Mat Fac Fac Low Low Fac Fac DSF Res Res Acc Total 5162 | 54 98 256 461 84 509 1089 19 139 144 131 1097 377 704 Wait 387 | 2 . 28 50 . 55 89 3 . . . 148 9 3 Move 4393 | 44 89 212 377 63 397 958 16 132 135 84 886 336 664 Hop 22 | . . . . . . . . . . 1 14 6 1 Pick Up 49 | 2 5 7 7 8 7 6 . . . 2 3 1 1 Fast Attach 67 | 6 2 4 2 1 5 2 . 4 4 6 16 4 11 Attach 32 | . . . 2 3 9 4 . 2 . . 5 3 4 Detach 12 | . . . 1 1 . . . . 3 . 2 2 3 Swap 3 | . . . . 1 2 . . . . . . . . Drop 48 | . 1 2 1 7 4 6 . 1 2 2 13 5 4 Fire 28 | . 1 1 . . . . . . . . 10 11 5 Melee 77 | . . 2 21 . 30 24 . . . . . . . Ram . | . . . . . . . . . . . . . . Kick 8 | . . . . . . . . . . . . . 8 Crush . | . . . . . . . . . . . . . . Escape Stasis 36 | . . . . . . . . . . 36 . . . Rewire . | . . . . . . . . . . . . . . Trap . | . . . . . . . . . . . . . . Miscellaneous . | . . . . . . . . . . . . . . Route ------- -11/Scrapyard -10/Materials -9/Materials -8/Materials -7/Factory -6/Factory -6/Lower Caves -6/Lower Caves -5/Factory (discovered 2 exits: *Fac / [*Upp]) -4/Factory -4/DSF -3/Research -2/Research -1/Access History --------- Turn | Location | Event 22 | -11/Scrapyard | Discovered new exit (range 15) 58 | -11/Scrapyard | Entered Materials 161 | -10/Materials | Discovered new exit (range 6) 168 | -10/Materials | Entered another Materials area 168 | -9/Materials | Evolved 2 slots: Weapon x2 335 | -9/Materials | Build established: Mutant 512 | -9/Materials | Discovered new exit (range 8) 525 | -9/Materials | Entered another Materials area 525 | -8/Materials | Evolved 2 slots: Utility x2 826 | -8/Materials | Build established: Hacker-Mutant 1183 | -8/Materials | Discovered new exit (range 5) 1197 | -8/Materials | Entered Factory 1197 | -7/Factory | Evolved 2 slots: Utility x2 1227 | -7/Factory | Discovered new exit (range 5) 1323 | -7/Factory | Entered another Factory area 1323 | -6/Factory | Evolved 2 slots: Propulsion x2 2022 | -6/Factory | Lost 6 parts (2n3u1w) 2047 | -6/Factory | Build established: Mutant 2245 | -6/Factory | Discovered new exit (range 11) 2287 | -6/Factory | Entered Lower Caves 2481 | -6/Lower Caves | Lost 3 parts (1n1u1w) 2500 | -6/Lower Caves | Encountered a Warlord checkpoint 3014 | -6/Lower Caves | Learned Factory trap positions 3622 | -6/Lower Caves | Lost 4 parts (1n3u) 3671 | -6/Lower Caves | Spotted B-75 Beast 3978 | -6/Lower Caves | Attracted the attention of an 0b10 checkpoint 4002 | -6/Lower Caves | Core integrity fell below 50% 4026 | -6/Lower Caves | Lost 5 parts (2n1u2w) 4081 | -6/Lower Caves | Learned Factory trap positions 4094 | -6/Lower Caves | Discovered new exit (range 10) 4099 | -6/Lower Caves | Entered another Lower Caves area 4103 | -6/Lower Caves | Discovered new exit (range 10) 4110 | -6/Lower Caves | Entered Factory 4110 | -5/Factory | Evolved 2 slots: Power x1, Propulsion x1 4111 | -5/Factory | Loaded intel: 108 trap records 4142 | -5/Factory | Discovered new exit (range 15) 4199 | -5/Factory | Discovered new exit (range 9) 4225 | -5/Factory | Entered another Factory area 4225 | -4/Factory | Evolved 2 slots: Power x1, Propulsion x1 4226 | -4/Factory | Loaded intel: 79 trap records 4297 | -4/Factory | Identified exit to DSF 4297 | -4/Factory | Entered DSF 4365 | -4/DSF | Additional patrols routed to DSF 4374 | -4/DSF | Discovered new exit (range 14) 4384 | -4/DSF | Entered Research 4384 | -3/Research | Evolved 2 slots: Propulsion x2 4642 | -3/Research | Found Fusion Bomb Launcher 4760 | -3/Research | Fabricated S-43 Plague? 5003 | -3/Research | Discovered new exit (range 10) 5005 | -3/Research | Entered another Research area 5005 | -2/Research | Evolved 2 slots: Propulsion x2 5039 | -2/Research | Spotted B-90 Cyclops 5159 | -2/Research | Discovered new exit (range 14) 5165 | -2/Research | Entered Access 5165 | -1/Access | Evolved 2 slots: Utility x2 5185 | -1/Access | Lost 10 parts (1p5n2u2w) 5338 | -1/Access | System corruption reached 10% 5372 | -1/Access | Lost 4 parts (4n) 5485 | -1/Access | Lost 3 parts (1n2u) 5497 | -1/Access | Core integrity fell below 50% 5499 | -1/Access | Energy Cycler disabled 5518 | -1/Access | Core integrity fell below 20% 5550 | -1/Access | Destroyed by P-80 Master with Gamma Rifle Last Messages --------------- 05431_ Field Propulsion Array destroyed. 05444_ M&LFO&99V2GF>:2F|B6VLR2K/AVFQW,MNPBKT 05447_ Acquired System Shield. 05454_ Machine Analyzer destroyed. 05454_ System Shield destroyed. 05459_ Fabricator disabled. 05462_ N,QGONORCY7WVL BEQAQTBHF#YFHT4H0LTNVO4 05478_ System corrupted: Matter fused (-7). 05491_ Acquired Unknown Processor. 05491_ Identified Adv. Terrain Scan Processor. 05493_ System corrupted: Heat flow error (+228). 05496_ Door malfunctions. 05499_ ALERT: Power surge detected, dispatching additional patrols. 05499_ Energy Cycler explodes. 05499_ Enh. Nova Cannon destroyed. 05499_ Destroyed Enh. Nova Cannon. 05502_ P-80 Master resets P-80 Master, system corruption cleaned. 05503_ Wave Collapse Detector explodes. 05506_ The unstable cave ceiling collapses. 05536_ System corrupted: Component data lost. Map ----- +----------------------------------------------------+ | | | | | | | | | | | | | | | | | | | | | | | | | | | | | | | | | | | | | | | | | | | ??????????????????????##################?????????? | | ??????????????????????# ????????? | | ??????????????????????# ????????? | | ??????????????????????# ????????? | | ??????????????????????# @ ????????? | | ??????????????????????# g ????????? | | ?????????????# ######?# Rk A ????????? | | ?????????????# ?# ############?????????? | | ?????????????+ # #????????????????????? | | ?????????????# = #g #????????????????????? | | ????????????# + +?????"??????????????? | | #???????????# # #????""??????????????? | | #???????????# " # #?????G??????????????? | | #???"???????# """ ?# #????""??????????????? | | +??"""??????# """ ?# #?????"??????????????? | | #???"""?????# " ??# #????????????????????? | | #????"???????######??# R#????????????????????? | | #????????????????????# #????????????????????? | | #????????????????????# pp #????????????????????? | | #????????????????????# p #????????????????????? | | #????????????????????# #????????????????????? | | ###################### #????????????????????? | | #????????????????????? | | #????????????????????? | | #????????????????????? | | #????????????????????? | | #????????????????????? | | ##/######## ######## #????????????????????? | | # #?# #??????### ###????????????????????? | +----------------------------------------------------+ Best States ------------- Heat Dissipation 52 Energy Generation 41 Energy Capacity 260 Matter Stores 300 Matter Capacity 300 Sight Range 16 Robot Scan Range 14 Terrain Scan Density 210 Armor Coverage 600 Evasion (%) 64 Recoil Reduction 4 Offensive Hacking 10 Defensive Hacking 20 Item Schematics ----------------- Flail | -9/Materials | Hacked System Shield | -8/Materials | Scanalyzed Imp. Light Armor Plating | -8/Materials | Scanalyzed Hrd. Medium Armor Plating | -7/Factory | Scanalyzed Hacking Suite | -7/Factory | Scanalyzed Arm. Treads | -7/Factory | Scanalyzed Robot Schematics ------------------ None Fabricated ------------ S-43 Plague | x4 | -3/Research | Preloaded Alien Tech Used ----------------- None Achievements -------------- None Challenges ------------ None Game ------ Seed HeatFortressFalx Manual? 0 Play Time 00:48:52 Cumulative 188.6 hours Start 2022.02.27 @ 23:34:56 End 2022.02.28 @ 00:18:49 Sessions 1 Manual Loads 0 Difficulty Rogue Special Mode None Game No. 242 Rogue 198 Adventurer 4 Explorer 40 Win Type - Total 4 Types 3/1/0/0/0/0/0/0/0 Lore% 51 Gallery% 73 Achievement% 58 Wizard Run 0 Options --------- ASCII 0 Keyboard 0 Movement Numpad Keybinds 0 Fullscreen 1 Font 18/SmallcapsGlow Map View 76x50 Tactical HUD 1 Map Filters NONE Filters NONE Steam 1 RUN: 212212c5-62a9-446d-89a9-959688985675